Cogmind - Beta 16 @@@ ROGUE MODE // 2025.12.01 @ 21:42:53 Player: GGOBC-006 Result: Destroyed by PS-Y8L(R) with Subdweller Beam Cannon Performance ------------- Evolutions (0) 0 Regions Visited (3) 600 Robots Destroyed (55) 275 Value Destroyed (1370) 1370 Prototype IDs (0) 0 Alien Tech Used (0) 0 Bonus (-54) -54 TOTAL SCORE: 2191 Bonus ------- Friendly Fire -54 Cogmind --------- Core Integrity 0/250 Matter 215/300 Energy 250/250 System Corruption 0% Temperature Cool (9) Movement Rolling (80) Location -10/Subcaves Parts ------- > --- POWER (1) -------- Ion Engine > --- PROPULSION (2) --- Wheel Wheel > --- UTILITY (2) ------ Sensor Array Targeting Computer > --- WEAPON (2) ------- (None) > --- INVENTORY (5) ---- Improved Heat Sink Bomb Drone Bay Peak State ------------ > --- POWER ------------ Ion Engine > --- PROPULSION ------- Wheel Wheel > --- UTILITY ---------- Sensor Array Targeting Computer > --- WEAPON ----------- Particle Gun Beamcaster > --- INVENTORY -------- Bomb Drone Bay Assault Rifle Grenade Launcher Grenade Launcher [Rating: 13] Favorites ----------- Power Ion Engine Engine Ion Engine Power Core Light Nuclear Core Propulsion Light Treads Treads Light Treads Leg Aluminum Leg Wheel Wheel Utility Targeting Computer Device Sensor Array Processor Targeting Computer Weapon Grenade Launcher Energy Gun EM Shotgun Ballistic Gun Assault Rifle Launcher Grenade Launcher Special Weapon Multitool Build | -11 -10 -10 -10 ------- Run | Yrd Mat Min Sub Slots Evolved . | . . . . Power . | . . . . Propulsion . | . . . . Utility . | . . . . Weapon . | . . . . Parts Attached 37 | 9 15 11 2 Power 7 | 1 3 3 . Engine 6 | 1 2 3 . Core 1 | . 1 . . Reactor . | . . . . Propulsion 9 | 3 . 5 1 Treads 2 | 2 . . . Leg 1 | 1 . . . Wheel 6 | . . 5 1 Hover . | . . . . Flight . | . . . . Utility 7 | 2 5 . . Device 5 | 2 3 . . Storage . | . . . . Processor 2 | . 2 . . Hackware . | . . . . Protection . | . . . . Artifact . | . . . . Weapon 14 | 3 7 3 1 Energy Gun 8 | 1 5 2 . Energy Cannon . | . . . . Ballistic Gun 2 | 2 . . . Ballistic Cannon . | . . . . Launcher 3 | . 2 1 . Special Weapon 1 | . . . 1 Impact Weapon . | . . . . Slashing Weapon . | . . . . Piercing Weapon . | . . . . Special Melee Weapon . | . . . . Unidentified Prototypes . | . . . . Parts Lost 11 | . 4 3 4 Power 2 | . . 2 . Propulsion 1 | . 1 . . Utility 1 | . 1 . . Weapon 7 | . 2 1 4 Highest Loss Streak 3 | . 2 2 3 To Critical Strikes . | . . . . Average Backups 4 | 4 4 3 3 Power . | . . . . Propulsion 1 | 3 2 . . Utility . | . . . 1 Weapon 1 | . 1 1 1 Tool/Special . | . . . . Unused Backups 6 | 1 2 1 2 Power 1 | . 1 . . Propulsion 2 | 1 1 . . Utility 3 | . . 1 2 Weapon . | . . . . Tool/Special . | . . . . Average Slot Usage (%) 92 | . 90 92 99 Engine 10 | . 7 13 14 Core 3 | . 6 . . Treads 14 | . 21 5 . Wheel 8 | . . 17 28 Device 17 | . 21 13 14 Processor 9 | . 6 14 14 Energy Gun 14 | . 15 11 25 Ballistic Gun 1 | . . 2 . Launcher 10 | . 10 13 2 Peak Build Rating 13 | 7 12 13 13 Average Rating 9 | 5 9 9 11 On Entrance 6 | . 7 7 13 Avg Prop Armor Cover (%) . | . . . . Naked Turns . | . . . . Heaviest Build 16 | 8 16 14 14 Greatest Support 40 | 40 40 20 20 Greatest Overweight (x) . | . . . . Average Overweight (x) . | . . . . Largest Inventory Capacity 5 | 5 5 5 5 Average Capacity 5 | 5 5 5 5 Most Carried 5 | 5 5 5 5 Average Carried 4 | 4 4 4 4 Final Capacity 5 | 5 5 5 5 Final Carried 5 | 5 5 5 3 Class Distribution -------------------- 82% | Mutant 17% | Scavenger-Mutant Dominant Class ---------------- Mutant | -10/Materials Mutant | -10/Mines Scavenger-Mutant | -10/Subcaves Resources | -11 -10 -10 -10 ----------- Run | Yrd Mat Min Sub Matter Collected 1190 | 340 340 475 35 Remotely 25 | 25 . . . Salvage Created 1655 | 130 982 488 55 Parts 116 | 8 65 38 5 Haulers Intercepted 1 | . 1 . . Recyclers Shooed 1 | . 1 . . Parts Field Recycled . | . . . . Retrieved Matter . | . . . . Parts Self-Destructed . | . . . . Prevented . | . . . . Parts Restored . | . . . . Kills | -11 -10 -10 -10 ------- Run | Yrd Mat Min Sub Combat Hostiles Destroyed 35 | . 22 12 1 Guns 19 | . 13 5 1 AOE 15 | . 8 7 . Classes Destroyed 13 | 3 6 1 3 Worker 3 | 1 1 1 . Builder 2 | . 1 1 . Tunneler 7 | 2 1 4 . Hauler 1 | . 1 . . Recycler 4 | 1 1 2 . Operator 1 | . 1 . . Watcher 3 | . 3 . . Swarmer 5 | . 2 3 . Grunt 28 | . 20 8 . Artisan 1 | . . . 1 Subdweller 1 | . . . 1 Scientist 1 | . . . 1 Assembled 1 | . . 1 . Best Kill Streak 4 | 1 3 4 1 Combat Bots Only 4 | . 3 4 1 Max Kills in Single Turn 2 | 1 2 2 1 Gunslinging . | . . . . Exploded 2 | . 2 2 . Melee . | . . . . Uniques/NPCs Destroyed . | . . . . Combat | -11 -10 -10 -10 -------- Run | Yrd Mat Min Sub Hostile Shots Fired 117 | . 77 22 18 Missed 34 | . 24 4 6 Hits 83 | . 53 18 12 Projectile 83 | . 53 18 12 Damage Taken 1180 | . 678 205 297 Core 254 | . 139 53 62 Absorbed by Shields 183 | . 183 . . Core Remaining (%) 100 | 100 . . . Volleys Fired 296 | 10 194 55 37 Largest 2 | 2 2 2 2 Hottest 140 | 40 112 140 140 Shots Fired 366 | 20 223 72 51 Gun 321 | 20 203 56 42 Cannon . | . . . . Launcher 45 | . 20 16 9 Special . | . . . . Kinetic 40 | 20 . 20 . Thermal 136 | . 58 36 42 Explosive 45 | . 20 16 9 Electromagnetic 145 | . 145 . . Robot Hit Streak 16 | 6 9 16 15 Robot Miss Streak 3 | 2 3 1 1 Penetration Max . | . . . . Secondary Targets 1 | . 1 . . Max Gunslinging Chain 1 | . 1 . . Shots Hit Robots 126 | 12 76 25 13 Core Hits 89 | 5 49 26 9 Critical Kills . | . . . . Critical Parts Destroyed . | . . . . Critical Strikes 1 | . . 1 . Burn 1 | . . 1 . Melee Attacks . | . . . . Impact . | . . . . Slashing . | . . . . Piercing . | . . . . Sneak Attacks . | . . . . Combat Hostiles . | . . . . Follow-up Attacks . | . . . . Damage Inflicted 3480 | 123 1885 1067 405 Guns 1716 | 123 972 418 203 Cannons . | . . . . Explosions 1764 | . 913 649 202 Melee . | . . . . Ramming . | . . . . Kinetic 202 | 123 . 79 . Thermal 1062 | . 520 339 203 Explosive 1596 | . 745 649 202 Electromagnetic 620 | . 620 . . Impact . | . . . . Slashing . | . . . . Piercing . | . . . . Highest Corruption . | . . . . Average Corruption . | . . . . Corruption Purged . | . . . . Corruption Blocked . | . . . . Overload Shots . | . . . . Overflow Damage 57 | . 55 2 . Projectiles . | . . . . Explosions 57 | . 55 2 . Melee . | . . . . Knockbacks . | . . . . Impact . | . . . . Kinetic . | . . . . Secondary . | . . . . Self-Inflicted Damage 308 | . 273 . 35 Shots 8 | . 6 . 2 Rammed . | . . . . Targets Rammed . | . . . . Kicked . | . . . . Crushed . | . . . . Highest Temperature 270 | . 270 246 90 Average Temperature 77 | . 81 83 38 Received Heat Transfer 387 | . 216 93 78 Siege Activations . | . . . . Martial Activations . | . . . . Shielding Activations . | . . . . Robots Disrupted . | . . . . Combat Hostiles . | . . . . Robots Corrupted 1 | . 1 . . Combat Hostiles 1 | . 1 . . Parts Fried 3 | . 3 . . Impact Corruptions . | . . . . Robots Melted . | . . . . Combat Hostiles . | . . . . Parts Melted 5 | . 3 2 . Heat Transferred 2322 | . 1138 740 444 Parts Sabotaged . | . . . . Parts Stolen . | . . . . Parts Stripped . | . . . . Power Chain Reactions 3 | . 3 . . Alert | -11 -10 -10 -10 ------- Run | Yrd Mat Min Sub Maximum Alert Level 1 | . 1 . . Low Security (%) 93 | 100 89 100 . Level 1 6 | . 10 . . Level 2 . | . . . . Level 3 . | . . . . Level 4 . | . . . . Level 5 . | . . . . High Security . | . . . . Max Security . | . . . . Peak Influence 223 | 5 223 163 . Initial 78 | . . 78 . Average 82 | . 110 53 . Influence Increases 1406 | 20 1015 371 . Destroy 0b10 Robot/C 660 | . 440 220 . Destroy 0b10 Robot/NC 105 | 20 45 40 . Destroy Leader 118 | . 98 20 . Successful Hack 15 | . 15 . . Disable Machine 225 | . 210 15 . Destroy Structure 253 | . 192 61 . Lose Combat Pursuer 30 | . 15 15 . Influence Decreases 1406 | 20 814 446 126 Entered New Map 189 | . . 123 66 Time Decay 1007 | 20 624 303 60 Lost Part 60 | . 40 20 . Purge Threat 150 | . 150 . . Squads Dispatched 9 | . 9 . . Investigation 7 | . 7 . . Extermination . | . . . . Reinforcement 2 | . 2 . . Assault . | . . . . Garrison . | . . . . Intercept . | . . . . Searches Triggered . | . . . . Construction Impeded . | . . . . Haulers Reinforced . | . . . . Active Scanning Responses . | . . . . Cargo Convoy Interrupts . | . . . . Stealth | -11 -10 -10 -10 --------- Run | Yrd Mat Min Sub Distress Signals 1 | . 1 . . Communications Jammed . | . . . . Distress Signals . | . . . . Times Spotted 44 | . 28 12 4 Peak Tracking Total 3 | . 3 3 3 Tactical Retreats 2 | . 1 1 . Traps | -11 -10 -10 -10 ------- Run | Yrd Mat Min Sub Traps Triggered 2 | . 2 . . Indirectly . | . . . . Trap Hack Attempts . | . . . . Triggered . | . . . . Disarmed . | . . . . Reprogrammed 2 | . 2 . . Reused . | . . . . Traps Extracted . | . . . . Installed . | . . . . Triggered . | . . . . Machines | -11 -10 -10 -10 ---------- Run | Yrd Mat Min Sub Machines Disabled 15 | . 14 1 . Max in Single Turn 2 | . 2 1 . Machines Repaired . | . . . . Machines Dismantled . | . . . . Machines Sabotaged . | . . . . Overloaded Fab Kills . | . . . . Hacking | -11 -10 -10 -10 --------- Run | Yrd Mat Min Sub Machines Accessed 10 | . 8 1 1 Terminals 5 | . 5 . . Fabricators . | . . . . Repair Stations 1 | . 1 . . Recycling Units 2 | . 2 . . Scanalyzers . | . . . . Garrison Access . | . . . . Total Hacks 34 | . 28 1 5 Successful 18 | . 12 1 5 Failed 16 | . 16 . . Catastrophic 6 | . 6 . . Database Lockouts . | . . . . Manual 38 | . 19 11 8 Terminals 21 | . 21 . . Fabricators . | . . . . Repair Stations 2 | . 2 . . Recycling Units 5 | . 5 . . Scanalyzers . | . . . . Garrison Access . | . . . . Terminal Hacks 12 | . 6 1 5 Record 7 | . 2 . 5 Open Door 1 | . . 1 . Unreport Threat 1 | . 1 . . Locate Traps 1 | . 1 . . Reprogram Traps 1 | . 1 . . Zone Layout 1 | . 1 . . Fabricator Hacks . | . . . . Repair Station Hacks 1 | . 1 . . Scan Component 1 | . 1 . . Recycling Unit Hacks 3 | . 3 . . Process 1 | . 1 . . Report Inventory 1 | . 1 . . Retrieve Components 1 | . 1 . . Scanalyzer . | . . . . Garrison Access Hacks . | . . . . Unauthorized Hacks 2 | . 2 . . Terminals 2 | . 2 . . Botnet 2 | . 2 . . Fabricators . | . . . . Repair Stations . | . . . . Recycling Units . | . . . . Scanalyzers . | . . . . Garrison Access . | . . . . Data Cores Recovered . | . . . . Used . | . . . . Hacking Detections 8 | . 8 . . Full Trace Events 8 | . 8 . . Feedback Events . | . . . . Feedback Blocked . | . . . . Robot Schematics Acquired . | . . . . Robots Built . | . . . . Authchips . | . . . . Time . | . . . . Total Robot Build Rating . | . . . . Part Schematics Acquired . | . . . . Parts Built . | . . . . Authchips . | . . . . Time . | . . . . Total Part Build Rating . | . . . . Part Studies Acquired . | . . . . Parts Repaired . | . . . . Time . | . . . . Parts Recycled . | . . . . Recycled Matter . | . . . . Retrieved Matter . | . . . . Retrieved Components 9 | . 9 . . Parts Scanalyzed . | . . . . Part Schematics Acquired . | . . . . Parts Damaged . | . . . . Bothacking | -11 -10 -10 -10 ------------ Run | Yrd Mat Min Sub Used RIF Installer . | . . . . Robots Hacked . | . . . . Non-combat . | . . . . Combat . | . . . . Robot Hacks Applied . | . . . . Relay Couplers Released . | . . . . Fabnet Peak Effective % . | . . . . Robots Rewired . | . . . . Allies Hacked . | . . . . Hacks Repelled . | . . . . Allies | -11 -10 -10 -10 -------- Run | Yrd Mat Min Sub Total Allies . | . . . . Largest Group . | . . . . Highest-Rated Group . | . . . . Highest-Rated Ally . | . . . . Total Orders . | . . . . Ally Attacks . | . . . . Total Damage . | . . . . Kills . | . . . . Allies Corrupted . | . . . . Allies Melted . | . . . . Intel | -11 -10 -10 -10 ------- Run | Yrd Mat Min Sub Active Infowar (turns) 2545 | 173 653 1398 321 Sensors 2076 | . 357 1398 321 Seismic 469 | 173 296 . . Robot Analysis Total . | . . . . Derelict Logs Recovered 4 | . . 1 3 Drone Launches . | . . . . Drone Recoveries . | . . . . Exploration | -11 -10 -10 -10 ------------- Run | Yrd Mat Min Sub Turns Passed 4525 | 306 2421 1477 321 Spaces Moved 2392 | 169 1216 762 245 Core 23 | 23 . . . Treads 1654 | 146 1216 292 . Legs . | . . . . Wheels 715 | . . 470 245 Hover . | . . . . Flight . | . . . . Fastest Speed 50 | 50 160 80 80 Average Speed 135 | 145 160 110 80 Slowest Speed 160 | 160 160 160 80 Overloaded Moves . | . . . . Propulsion Burnouts . | . . . . Robots Hopped . | . . . . Potential Cave-ins . | . . . . Cave-ins Triggered . | . . . . Exploration Rate (%) 52 | 7 96 96 11 Regions Visited 3 Branch Regions 2 Pre-discovered Areas 1 | . . . 1 Known Exits Taken . | . . . . Unknown Exits Taken 3 | 1 1 1 . Scrap Searched 2 | . . 2 . Spaces Dug 27 | . . 9 18 Terrain Destroyed 363 | . 201 109 53 Melee . | . . . . Projectile . | . . . . AOE 363 | . 201 109 53 Terrain Rammed . | . . . . Walls Destroyed . | . . . . Machines Disabled . | . . . . Actions | -11 -10 -10 -10 --------- Run | Yrd Mat Min Sub Total 3323 | 214 1470 1319 320 Wait 516 | 5 23 462 26 Move 2389 | 168 1215 761 245 Hop . | . . . . Pick Up 31 | 15 7 6 3 Fast Attach 12 | 2 8 2 . Attach 17 | 8 2 4 3 Detach 1 | 1 . . . Swap 29 | . 6 21 2 Drop 32 | 5 15 8 4 Fire 296 | 10 194 55 37 Melee . | . . . . Ram . | . . . . Kick . | . . . . Crush . | . . . . Escape Stasis . | . . . . Rewire . | . . . . Trap . | . . . . Miscellaneous . | . . . . Route ------- -11/Scrapyard -10/Materials (discovered 4 exits: *Mat x3 / *Min) -10/Mines (discovered 3 exits: *Mat x2 / *Sub) -10/Subcaves History --------- Turn | Location | Event 14 | -11/Scrapyard | Discovered new exit (range 15) 307 | -11/Scrapyard | Entered Materials 308 | -10/Materials | Build established: Mutant 308 | -10/Materials | Met a group of wandering Federalists 592 | -10/Materials | Discovered new exit (range 4) 733 | -10/Materials | Discovered new exit (range 8) 768 | -10/Materials | Discovered new exit (range 15) 1156 | -10/Materials | Discovered new exit (range 12) 1694 | -10/Materials | Identified exit to Materials 2693 | -10/Materials | Core integrity fell below 50% 2728 | -10/Materials | Entered Mines 2787 | -10/Mines | Met a Derelict bent on vengeance 2909 | -10/Mines | Discovered exit to Materials (range 9) 3249 | -10/Mines | Discovered exit to Materials (range 7) 3250 | -10/Mines | Learned Materials terminal intel 3267 | -10/Mines | Found the Drone Emporium 3289 | -10/Mines | Found Prototype Device 3306 | -10/Mines | Excavation squad dispatched 3306 | -10/Mines | A large section of the Mines collapsed 3556 | -10/Mines | Excavation squad dispatched 3999 | -10/Mines | Build established: Scavenger-Mutant 4199 | -10/Mines | Discovered new exit (range 6) 4205 | -10/Mines | Entered Subcaves 4206 | -10/Subcaves | Approached by a straggling Scientist 4208 | -10/Subcaves | Learned Materials security intel 4214 | -10/Subcaves | Learned Materials terminal intel 4258 | -10/Subcaves | Visited Clippyterm 4261 | -10/Subcaves | Learned location of Section 7 (-2) 4261 | -10/Subcaves | Learned Factory garrison access intel 4370 | -10/Subcaves | Learned 4 Materials zone layouts 4447 | -10/Subcaves | Ambushed by angry Subdweller bent on revenge 4463 | -10/Subcaves | Core integrity fell below 20% 4513 | -10/Subcaves | Ambushed by Subdweller buried in earth 4526 | -10/Subcaves | Destroyed by PS-Y8L(R) with Subdweller Beam Cannon Last Messages --------------- 82-GXJ(c): "I think it's somewhere east of here" GF-RUU(R) destroyed. Acquired 1 matter. Dropped Wheel. Acquired 10 matter. Acquired Scrap Shield Fragment. Subatomizers dissect the Multitool. Dropped Scrap Shield Fragment. Acquired 10 matter. Subatomizers dissect the Wheel. 82-GXJ(c): "I think it's somewhere east of here" [Achievement: Do Not Disturb] HD-2QG(R): "GOODGOOD!" Particle Gun destroyed. [Achievement: There's More Where That Came From] 82-GXJ(c) destroyed. Grenade Launcher destroyed. The unstable cave ceiling collapses. Grenade Launcher destroyed. Subatomizers dissect the Wheel. Map ----- +----------------------------------------------------+ | | | ?????????????????????????????????????????????????? | | ?????????????????????????????????????????????????? | | ?????????????????????????????????????????????????? | | ?????????????????????????????????????????????????? | | ?????????????????????????????????????????????????? | | ?????????????????????????????????????????????????? | | ?????????????????????????????????????????????????? | | ?????????????????????????????????????????????????? | | ?????????????????????????????????????????????????? | | ?????????????????????????????????????????????????? | | ?????????????????????????????????????????????????? | | ?????????????????????????????????????????????????? | | ?????????????????????????????????????????????????? | | ?????????????????????????????????????????????????? | | ???????????????????????????#?######??????????????? | | ????????###########???????# ? ##?????????????? | | ???????## #####??? #?????????????? | | ??????## ##?? R #?????????????? | | ??????# ### #R #?????????????? | | ??????## # # #??????????????? | | ???????## """ = #??????????????? | | ????????### "" &%= #??????????????? | | ??????????## " " * #??????????????? | | ???????????## ""## R #??????????????? | | ????????????### ## @ #??????????????? | | ??????????????## # " #??????????????? | | ???????????????##" ## #??????????????? | | ????????? ??????### ### ###??????????????? | | ?????? #???## " #??####????????????????? | | ??????# #### ""##??????????????????????? | | ?????????# ""##???????????????????????? | | ?????????# #####?????????????????????? | | ??????# ## ##???????####?????????? | | ??????# ### #????#### ##????????? | | ??????## ???## ###### "" ##???????? | | ???????## ?????# "" #???????? | | ????????###??????## "" #???????? | | ??????????????????# ############???????? | | ?????????????????## ## ##??????????????????? | | ?????????????????# #### #???????????????????? | | ?????????????????## ##??## #???????????????????? | | ??????????????????# #????###???????????????????? | | ??????????????????# ##??????????????????????????? | | ??????????????????# ##??????????????????????????? | | ??????????????????# #??????????????????????????? | | ?????????????????## #??????????????????????????? | | ?????????????????# ##?????????????????????????? | | ?????????????????## ######????????????????????? | | ??????????????????# # # #????????????????????? | +----------------------------------------------------+ Best States ------------- Heat Dissipation 35 Energy Generation 14 Energy Capacity 265 Matter Stores 300 Matter Capacity 300 Sight Range 16 Robot Scan Range 14 Terrain Scan Density 10 Evasion (%) 44 Targeting Accuracy 5 Recoil Reduction 2 Item Schematics ----------------- None Robot Schematics ------------------ None Fabricated ------------ Nothing Repaired ---------- Nothing Studied --------- None Alien Tech Used ----------------- None Achievements -------------- DATA ERROR: Steam Global Achievement% Do Not Disturb Organ Harvest Overwhelming There's More Where That Came From Challenges ------------ None Game ------ Seed ParticleFocalDriver Manual? 0 Play Time 01:21:01 Cumulative 72.3 hours Start 2025.12.01 @ 19:52:35 End 2025.12.01 @ 21:42:53 Sessions 1 Manual Loads 0 Difficulty Rogue Special Mode None Game No. 56 Rogue 56 Adventurer 0 Explorer 0 Win Type - Total 0 Types 0/0/0/0/0/0/0/0/0/0 Lore% 26 Gallery% 37 Achievement% 22 Wizard Run 0 Options --------- Layout 1 ASCII 0 Keyboard 0 Movement Mouse Keybinds 0 Fullscreen 1 Font 32/SmallcapsGlow Map View 50x40 Zoom Use 0% Tactical HUD 0 Map Filters NONE Filters NONE Steam 1 RUN: 5f055ffc-4c16-48c1-9ea0-ac74830186b2